fUSD/lending_fUSD_20260321
["ID","MTS","AMOUNT","RATE_DAILY","PERIOD"]
[408662666,1774081840407,-500.0,0.00015296,2]
[408662667,1774081840416,-500.0,0.00015296,2]
[408662668,1774081840425,-500.0,0.00015296,2]
[408662669,1774081840435,-500.0,0.00015296,2]
[408662670,1774081840444,-240.54531651,0.00015296,2]
[408662671,1774081840453,-2500.0,0.000153,2]
[408662672,1774081840463,-6800.0,0.000153,5]
[408662673,1774081840473,-300.0,0.00015326,2]
[408662674,1774081840483,-420.0,0.00015326,2]
[408662675,1774081840492,-177.0,0.00015326,2]
[408662676,1774081840502,-302.0,0.00015326,2]
[408662677,1774081840511,-488.98,0.00015384,2]
[408662678,1774081840520,-1680.0,0.00015388,2]
[408662679,1774081840530,-993.0,0.00015398,2]
[408662680,1774081840539,-8500.0,0.000154,5]
[408662681,1774081840549,-1700.0,0.000155,5]
[408662682,1774081840559,-426.28,0.00015506,2]
[408662683,1774081840568,-3915.0,0.00015507,2]
[408662684,1774081840577,-364.61,0.00015562,2]
[408662685,1774081840587,-1700.0,0.000156,5]
[408662686,1774081840597,-993.0,0.00015614,2]
[408662687,1774081840606,-488.98,0.00015658,2]
[408662688,1774081840615,-237.0,0.00015663,2]
[408662689,1774081840624,-2374.002028,0.00015682,2]
[408662690,1774081840634,-2000.0,0.000157,2]
[408662691,1774081840643,-1700.0,0.000157,5]
[408662692,1774081840653,-166.93,0.00015702,2]
[408662693,1774081840662,-700.0,0.00015726,2]
[408662694,1774081840672,-1469.794,0.0001573,2]
[408662695,1774081840681,-245.509,0.0001573,2]
[408662696,1774081840691,-3532.0,0.000158,2]
[408662697,1774081840701,-1700.0,0.000158,5]
[408662698,1774081840710,-221.97457562,0.000158,2]
[408662699,1774081840719,-181.43286623,0.00015899,2]
[408662700,1774081840728,-181.43286614,0.00015899,2]
[408662701,1774081840738,-181.43286614,0.00015899,2]
[408662702,1774081840748,-181.43286614,0.00015899,2]
[408662703,1774081840757,-181.43286614,0.00015899,2]
[408662704,1774081840767,-181.43286614,0.000159,2]
[408662705,1774081840776,-181.43286614,0.000159,2]
[408662706,1774081840786,-181.43286614,0.000159,2]
[408662707,1774081840795,-181.43286614,0.000159,2]
[408662708,1774081840804,-192.50981043,0.000159,2]
[408662709,1774081840814,-5000.0,0.000159,2]
[408662710,1774081840823,-455.54287758,0.000159,2]
[408662711,1774081840832,-1897.0,0.000159,5]
[408662712,1774081840842,-181.43286614,0.000159,2]
[408662713,1774081840851,-488.98705304,0.00015932,2]
[408662714,1774081840861,-237.0,0.00015967,2]
[408662715,1774081841023,-500.0,0.00015973,2]
[408662716,1774081841033,-500.0,0.00015973,2]
[408662717,1774081841043,-500.19221246,0.00015973,2]
[408662718,1774081841052,-210.78762468,0.00015973,2]
[408662719,1774081841061,-500.0,0.00015973,2]
[408662720,1774081841070,-500.0,0.00015973,2]
[408662721,1774081841079,-10088.0359424,0.00015999,2]
[408662722,1774081841088,-155.51,0.00015999,2]
[408662723,1774081841098,-68835.1452897,0.00015999,2]
[408662724,1774081841107,-500.0,0.00015999,2]
[408662725,1774081841117,-425.041823,0.00015999,2]
[408662726,1774081841126,-500.0,0.00015999,2]
[408662727,1774081841135,-297.05630649,0.00015999,2]
[408662728,1774081841144,-1789.0,0.00016,5]
[408662729,1774081841154,-1433.0,0.00016,5]
[408662730,1774081841164,-3336927.90555897,0.00016,2]
[408662731,1774081841181,-635.10899384,0.00016,2]
[408662733,1774081841205,-19802.35950953,0.00016,2]
[408662734,1774081841216,-1001.22178799,0.00016,2]
[408662741,1774081843091,-322.94797957,0.00016,2]
[408662746,1774081843451,-19.58964064,0.00016,2]
[408662747,1774081843462,-13004.1221778,0.00016,2]
[408662756,1774081845938,-1000.0,0.00016,2]
[408662757,1774081845951,-13583.40475856,0.00016,2]
[408662758,1774081845968,-420.89839746,0.00016,2]
[408662759,1774081845980,-2889.48090365,0.00016,2]
[408662760,1774081846119,-375.16371793,0.00016,2]
[408662763,1774082658395,587.39597412,0.00016,120]
[408662764,1774082736615,245.969,0.00012575,10]
[408662765,1774082951133,-209.9,0.00011808,2]
[408662766,1774082951153,-247.0,0.00011808,2]
[408662767,1774082951173,-170.56,0.00012026,2]
[408662768,1774082951194,-166.66,0.00013231,2]
[408662769,1774082951214,-200.0,0.00013352,2]
[408662770,1774082951235,-45.81765881,0.00013398,2]
[408662775,1774083032344,-523.0,0.00013111,2]
[408662776,1774083032354,-214.10234119,0.00013398,2]
[408662777,1774083032364,-166.66,0.00013509,2]
[408662778,1774083032373,-199.25,0.00013519,2]
[408662780,1774083032382,-2000.0,0.00013647,2]
[408662781,1774083032392,-782.0,0.00013718,2]
[408662782,1774083032401,-166.66,0.00013788,2]
[408662783,1774083032411,-500.0,0.00014,2]
[408662784,1774083032420,-3240.0,0.00014005,2]
[408662785,1774083032429,-166.66,0.00014066,2]
[408662786,1774083032439,-1200.0,0.0001409,2]
[408662787,1774083032448,-303.0,0.00014091,2]
[408662788,1774083032457,-300.0,0.00014092,2]
[408662789,1774083032466,-177.0,0.00014093,2]
[408662790,1774083032475,-300.0,0.00014093,2]
[408662792,1774083032485,-300.0,0.00014093,2]
[408662794,1774083032494,-1852.42,0.00014094,2]
[408662796,1774083032503,-16055.63,0.00014137,2]
[408662798,1774083032512,-187.16,0.00014137,2]
[408662800,1774083032522,-250.32035532,0.00014223,2]
[408662802,1774083032532,-500.0,0.00014256,2]
[408662804,1774083032541,-500.0,0.00014335,2]
[408662805,1774083032551,-166.66,0.00014345,2]
[408662806,1774083032562,-500.0,0.00014356,2]
[408662807,1774083032572,-600.0,0.00014356,2]
[408662808,1774083032583,-31222.2191,0.00014404,2]
[408662809,1774083032593,-2500.0,0.00014422,2]
[408662810,1774083032604,-2500.0,0.00014422,2]
[408662811,1774083032616,-300.0,0.00014422,2]
[408662812,1774083032627,-300.0,0.00014422,2]
[408662813,1774083032640,-300.0,0.00014422,2]
[408662814,1774083032650,-300.0,0.00014422,2]
[408662815,1774083032660,-344.96275578,0.00014422,2]
[408662816,1774083032669,-600.0,0.00014422,2]
[408662817,1774083032678,-600.0,0.00014422,2]
[408662818,1774083032688,-2265.94,0.00014504,2]
[408662819,1774083032698,-4999.99,0.00014504,2]
[408662820,1774083032707,-450.03729363,0.00014504,2]
[408662821,1774083032719,-3669.97329859,0.00014504,2]
[408662822,1774083032743,-1969.61424798,0.00014504,2]
[408662823,1774083032779,-952.0,0.00014504,2]
[408662824,1774083032799,-2454.25531392,0.00014504,2]
[408662829,1774083038247,-500.0,0.00014504,2]
[408662830,1774083038261,-191.58645727,0.00014504,2]
[408662831,1774083038301,-437.76165481,0.00014504,2]
[408662832,1774083038319,-794.95981783,0.00014504,2]
[408662841,1774083040543,-10722.44323136,0.00014504,2]
[408662842,1774083040596,-63621.99868461,0.00014504,2]
[408662843,1774083040607,-999.99,0.00014504,2]
[408662844,1774083040620,-1547.4,0.00014504,2]
[408662845,1774083040631,-150.99,0.00014504,2]
[408662846,1774083040643,-8176.06,0.00014504,2]
[408662847,1774083040655,-12081.77,0.00014504,2]
[408662848,1774083040667,-20010.79,0.00014504,2]
[408662849,1774083040679,-299.99,0.00014504,2]
[408662850,1774083040691,-9999.99,0.00014504,2]
[408662851,1774083040702,-6101.13,0.00014504,2]
[408662852,1774083040713,-9999.99,0.00014504,2]
[408662853,1774083040725,-1654.5,0.00014504,2]
[408662854,1774083040737,-150.99,0.00014504,2]
[408662855,1774083040748,-9999.99,0.00014504,2]
[408662856,1774083040760,-166.66,0.00014623,2]
[408662857,1774083040771,-1500.0,0.00014685,2]
[408662858,1774083040783,-500.0,0.00014714,2]
[408662859,1774083040795,-500.0,0.00014714,2]
[408662860,1774083040807,-500.0,0.00014714,2]
[408662861,1774083040818,-500.0,0.00014714,2]
[408662862,1774083040830,-500.0,0.00014714,2]
[408662863,1774083040841,-500.0,0.00014714,2]
[408662864,1774083040853,-500.0,0.00014714,2]
[408662865,1774083040864,-500.0,0.00014714,2]
[408662866,1774083040875,-500.0,0.00014714,2]
[408662867,1774083040887,-500.0,0.00014714,2]
[408662868,1774083040898,-500.0,0.00014714,2]
[408662869,1774083040909,-500.0,0.00014714,2]
[408662871,1774083040920,-500.0,0.00014714,2]
[408662872,1774083040932,-500.0,0.00014714,2]
[408662873,1774083040946,-500.0,0.00014714,2]
[408662874,1774083040958,-500.0,0.00014714,2]
[408662875,1774083040969,-500.0,0.00014714,2]
[408662876,1774083040981,-632.64610256,0.00014714,2]
[408662877,1774083040993,-500.0,0.00014714,2]
[408662878,1774083041004,-500.0,0.00014714,2]
[408662879,1774083041016,-500.0,0.00014714,2]
[408662880,1774083041027,-500.0,0.00014714,2]
[408662881,1774083041039,-500.0,0.00014714,2]
[408662882,1774083041052,-500.0,0.00014714,2]
[408662883,1774083041064,-25755.1237,0.00014715,2]
[408662884,1774083041076,-500.0,0.00014779,2]
[408662885,1774083041089,-336.41369204,0.00014779,2]
[408662886,1774083041100,-1000.0,0.00014786,2]
[408662887,1774083041112,-1000.0,0.00014787,2]
[408662888,1774083041123,-426.29,0.00014815,2]
[408662889,1774083041135,-296.0,0.00015077,2]
[408662890,1774083041147,-1400.0,0.000151,5]
[408662891,1774083041158,-200.0,0.00015192,2]
[408662892,1774083041170,-296.0,0.00015198,2]
[408662893,1774083041182,-500.0,0.00015198,2]
[408662894,1774083041194,-500.0,0.00015198,2]
[408662895,1774083041206,-500.0,0.00015199,2]
[408662896,1774083041217,-500.0,0.00015199,2]
[408662897,1774083041229,-500.0,0.00015199,2]
[408662898,1774083041240,-500.0,0.00015199,2]
[408662899,1774083041251,-500.0,0.00015199,2]
[408662900,1774083041266,-500.0,0.00015199,2]
[408662901,1774083041275,-500.0,0.00015199,2]
[408662902,1774083041284,-500.0,0.00015199,2]
[408662903,1774083041294,-500.0,0.00015199,2]
[408662904,1774083041303,-500.0,0.00015199,2]
[408662905,1774083041313,-500.0,0.00015199,2]
[408662906,1774083041322,-500.0,0.00015199,2]
[408662907,1774083041332,-2900.0,0.000152,5]
[408662908,1774083041341,-350.0,0.00015206,2]
[408662909,1774083041576,-199.25,0.00015208,2]
[408662910,1774083041589,-153.25761504,0.0001521,2]
[408662911,1774083041598,-2500.0,0.0001521,2]
[408662912,1774083041608,-218.39,0.00015296,2]
[408662913,1774083041617,-500.0,0.00015296,2]
[408662914,1774083041626,-500.0,0.00015296,2]
[408662915,1774083041636,-500.0,0.00015296,2]
[408662916,1774083041646,-500.0,0.00015296,2]
[408662917,1774083041655,-240.54531651,0.00015296,2]
[408662918,1774083041665,-4300.0,0.000153,5]
[408662919,1774083041674,-293.38,0.0001531,2]
[408662920,1774083041683,-2000.0,0.00015353,2]
[408662921,1774083041693,-5800.0,0.000154,5]
[408662922,1774083041702,-420.0,0.00015438,2]
[408662923,1774083041712,-281.42,0.00015469,2]
[408662924,1774083041722,-296.0,0.00015496,2]
[408662925,1774083041731,-1680.0,0.00015499,2]
[408662926,1774083041741,-7200.0,0.000155,5]
[408662927,1774083041750,-296.0,0.00015528,2]
[408662928,1774083041760,-410.0,0.00015537,2]
[408662929,1774083041769,-410.0,0.00015568,2]
[408662930,1774083041779,-293.38,0.00015584,2]
[408662931,1774083041788,-993.0,0.00015593,2]
[408662932,1774083041797,-993.0,0.000156,2]
[408662933,1774083041807,-1400.0,0.000156,5]
[408662934,1774083041817,-993.0,0.00015624,2]
[408662935,1774083041827,-993.0,0.0001567,2]
[408662936,1774083041837,-356.600136,0.0001568,7]
[408662937,1774083041847,-1853.806,0.000157,2]
[408662938,1774083041856,-245.509,0.000157,2]
[408662939,1774083041865,-1400.0,0.000157,5]
[408662940,1774083041875,-600.0,0.00015726,2]
[408662941,1774083041884,-1400.0,0.000158,5]
[408662942,1774083041895,-993.0,0.00015833,2]
[408662943,1774083041905,-410.0,0.00015835,2]
[408662944,1774083041914,-293.38,0.00015858,2]
[408662945,1774083041924,-410.0,0.00015864,2]
[408662946,1774083041933,-2000.0,0.0001589,2]
[408662947,1774083041943,-1860.42157407,0.00015899,2]
[408662948,1774083041952,-1860.42157398,0.00015899,2]
[408662949,1774083041962,-1860.42157398,0.00015899,2]
[408662950,1774083041971,-1860.42157398,0.00015899,2]
[408662951,1774083041981,-1860.42157398,0.00015899,2]
[408662952,1774083041990,-1860.42157398,0.000159,2]
[408662953,1774083042001,-1860.42157398,0.000159,2]
[408662954,1774083042010,-1860.42157398,0.000159,2]
[408662955,1774083042020,-1860.42157398,0.000159,2]
[408662956,1774083042029,-152.74417928,0.000159,2]
[408662957,1774083042039,-157.27731798,0.000159,2]
[408662958,1774083042049,-385.01962086,0.000159,2]
[408662959,1774083042059,-5000.0,0.000159,2]
[408662960,1774083042069,-1860.42157398,0.000159,2]
[408662961,1774083042079,-1400.0,0.000159,5]
[408662962,1774083042090,-993.0,0.00015951,2]
[408662963,1774083042099,-3915.0,0.00015973,2]
[408662964,1774083042109,-500.0,0.00015973,2]
[408662965,1774083042119,-500.0,0.00015973,2]
[408662966,1774083042128,-500.0,0.00015973,2]
[408662967,1774083042138,-210.78762468,0.00015973,2]
[408662968,1774083042147,-500.0,0.00015973,2]
[408662969,1774083042157,-500.19221246,0.00015973,2]
[408662970,1774083042167,-500.0,0.00015973,2]
[408662971,1774083042177,-993.0,0.00015983,2]
[408662972,1774083042186,-150.24489127,0.0001599,2]
[408662973,1774083042195,-10118.6481973,0.00015999,2]
[408662974,1774083042205,-155.51,0.00015999,2]
[408662975,1774083042215,-54076.6860152,0.00015999,2]
[408662976,1774083042225,-42699.6982863,0.00015999,2]
[408662977,1774083042234,-2753.1988107,0.00015999,2]
[408662978,1774083042244,-497.81240401,0.00015999,2]
[408662979,1774083042254,-500.0,0.00015999,2]
[408662980,1774083042266,-500.0,0.00015999,2]
[408662981,1774083042276,-545.02606408,0.00015999,2]
[408662982,1774083042286,-1986.0,0.00016,5]
[408662983,1774083042296,-1589.0,0.00016,5]
[408662984,1774083042305,-3097124.3464696,0.00016,2]
[408662985,1774083042337,-26796.87553852,0.00016,2]
[408662986,1774083042348,-899.72188916,0.00016,2]
[408662993,1774083043162,-5019.12034498,0.00016,2]
[408662994,1774083043323,-5493.36741556,0.00016,2]
[408662995,1774083043428,-143209.99999998,0.00016,2]
[408663015,1774083046095,-801.53308525,0.00015839,2]
[408663016,1774083046204,-2889.52090365,0.00015839,2]
[408663018,1774083054949,154.0,0.00011,5]
[408663019,1774083387203,21.0,7.892e-05,2]
[408663020,1774083387232,139.82,7.892e-05,2]
[408663022,1774083823990,658.78,0.00012575,10]
[408663033,1774084231336,-500.0,0.00013011,2]
[408663034,1774084231350,-20.49846645,0.00013111,2]
[408663035,1774084231365,-484.50153355,0.00013111,2]
[408663036,1774084231377,-131.22869347,0.00013936,2]
[408663037,1774084231392,-168.77130653,0.00013936,2]
[408663038,1774084231401,-1200.0,0.00013936,2]
[408663039,1774084231411,-300.0,0.00013936,2]
[408663040,1774084231420,-2799.6474943,0.00013937,2]
[408663041,1774084231442,-987.95536,0.00013937,2]
[408663042,1774084231454,-869.66570832,0.00013937,2]
[408663043,1774084231482,-2088.41628585,0.00013937,2]
[408663044,1774084231516,-2707.598,0.00013937,2]
[408663062,1774084237395,-500.0,0.00013937,2]
[408663063,1774084237407,-15801.84085153,0.00013937,2]
[408663064,1774084237422,-207.419,0.00013937,2]
[408663065,1774084237448,-500.0,0.00014029,2]
[408663066,1774084237464,-336.41369204,0.00014029,2]
[408663067,1774084237478,-1000.0,0.00014036,2]
[408663068,1774084237489,-40401.14158729,0.00014037,2]
[408663069,1774084237523,-3494.11304809,0.00014037,2]
[408663070,1774084237559,-1696.98341499,0.00014037,2]
[408663071,1774084237590,-4686.05025142,0.00014037,2]
[408663072,1774084237619,-2679.22672989,0.00014037,2]
[408663073,1774084237630,-828.73,0.00014037,2]
[408663074,1774084237642,-787.26696305,0.00014037,2]
[408663128,1774084239626,-57614.03940527,0.00014037,2]
[408663129,1774084239635,-153.25761504,0.00014212,2]
[408663130,1774084239644,-150.0,0.00014273,2]
[408663131,1774084239653,-600.0,0.00014312,2]
[408663132,1774084239662,-300.0,0.00014312,2]
[408663133,1774084239671,-300.0,0.00014312,2]
[408663134,1774084239679,-300.0,0.00014312,2]
[408663135,1774084239688,-250.0,0.00014312,2]
[408663136,1774084239696,-500.0,0.00014356,2]
[408663137,1774084239705,-600.0,0.00014356,2]
[408663138,1774084239714,-1547.4,0.00014356,2]
[408663139,1774084239724,-999.99,0.00014356,2]
[408663140,1774084239734,-150.99,0.00014356,2]
[408663141,1774084239742,-1654.5,0.00014356,2]
[408663142,1774084239750,-299.99,0.00014356,2]
[408663143,1774084239758,-8176.06,0.00014404,2]
[408663144,1774084239766,-9999.99,0.00014404,2]
[408663145,1774084239774,-9999.99,0.00014404,2]
[408663146,1774084239782,-150.99,0.00014404,2]
[408663147,1774084239790,-9999.99,0.00014404,2]
[408663148,1774084239799,-9999.99,0.00014404,2]
[408663149,1774084239807,-12081.77,0.00014404,2]
[408663150,1774084239816,-1000.0,0.00014404,2]
[408663151,1774084239824,-13358.25,0.00014504,2]
[408663152,1774084239832,-19999.99,0.00014504,2]
[408663153,1774084239841,-160.66,0.00014533,2]
[408663154,1774084239850,-500.0,0.00014904,2]
[408663155,1774084239858,-250.0,0.00015,2]
[408663156,1774084239866,-2500.0,0.00015,2]
[408663157,1774084239875,-500.0,0.00015098,2]
[408663158,1774084239883,-500.0,0.00015098,2]
[408663159,1774084239892,-500.0,0.00015098,2]
[408663160,1774084239900,-500.0,0.00015098,2]
[408663161,1774084239908,-500.0,0.00015098,2]
[408663162,1774084239914,-500.0,0.00015098,2]
[408663163,1774084239921,-150.0,0.00015098,2]
[408663164,1774084239927,-500.0,0.00015099,2]
[408663165,1774084239934,-500.0,0.00015099,2]
[408663166,1774084239940,-221.97457562,0.00015099,2]
[408663167,1774084239948,-1800.0,0.000151,5]
[408663168,1774084239955,-500.0,0.00015199,2]
[408663169,1774084239961,-500.0,0.00015199,2]
[408663170,1774084239968,-548.11552264,0.00015199,2]
[408663171,1774084239976,-500.0,0.00015199,2]
[408663172,1774084239985,-500.0,0.00015199,2]
[408663173,1774084239995,-500.0,0.00015199,2]
[408663174,1774084240004,-500.0,0.00015199,2]
[408663175,1774084240013,-500.0,0.00015199,2]
[408663176,1774084240023,-500.0,0.00015199,2]
[408663177,1774084240033,-500.0,0.00015199,2]
[408663178,1774084240043,-500.0,0.00015199,2]
[408663179,1774084240053,-500.0,0.00015199,2]
[408663180,1774084240063,-500.0,0.00015199,2]
[408663181,1774084240071,-500.0,0.00015199,2]
[408663182,1774084240080,-500.0,0.00015199,2]
[408663183,1774084240090,-3600.0,0.000152,5]
[408663184,1774084240100,-500.0,0.00015296,2]
[408663185,1774084240109,-500.0,0.00015296,2]
[408663186,1774084240119,-500.0,0.00015296,2]
[408663187,1774084240129,-500.0,0.00015296,2]
[408663188,1774084240139,-240.54531651,0.00015296,2]
[408663189,1774084240151,-5400.0,0.000153,5]
[408663190,1774084240161,-1680.0,0.0001533,2]
[408663191,1774084240173,-7200.0,0.000154,5]
[408663192,1774084240183,-350.0,0.00015409,2]
[408663193,1774084240192,-296.0,0.00015443,2]
[408663194,1774084240202,-218.39,0.0001549,2]
[408663195,1774084240213,-9000.0,0.000155,5]
[408663196,1774084240224,-1800.0,0.000156,5]
[408663197,1774084240233,-1000.0,0.00015662,2]
[408663198,1774084240243,-2374.002028,0.00015682,2]
[408663199,1774084240253,-1853.806,0.000157,2]
[408663200,1774084240262,-245.509,0.000157,2]
[408663202,1774084240271,-3532.0,0.000157,2]
[408663203,1774084240281,-1800.0,0.000157,5]
[408663204,1774084240290,-1038.28340556,0.00015712,2]
[408663205,1774084240300,-600.0,0.00015726,2]
[408663206,1774084240310,-168.0,0.0001574,2]
[408663207,1774084240319,-2583.0,0.00015752,2]
[408663208,1774084240329,-168.0,0.00015763,2]
[408663209,1774084240339,-1398.72,0.00015783,2]
[408663210,1774084240349,-291.69,0.00015783,2]
[408663211,1774084240359,-168.0,0.00015792,2]
[408663212,1774084240368,-2478.0,0.00015796,2]
[408663213,1774084240378,-2000.0,0.000158,2]
[408663214,1774084240388,-1800.0,0.000158,5]
[408663215,1774084240397,-158.12529989,0.00015828,2]
[408663216,1774084240407,-2583.0,0.00015832,2]
[408663217,1774084240416,-7421.3460111,0.00015839,2]
[408663218,1774084240427,-2478.0,0.00015855,2]
[408663219,1774084240437,-296.0,0.00015866,2]
[408663220,1774084240447,-1860.42157407,0.00015873,2]
[408663221,1774084240456,-385.01962086,0.000159,2]
[408663222,1774084240466,-5000.0,0.000159,2]
[408663223,1774084240475,-1800.0,0.000159,5]
[408663224,1774084240485,-985.8250665,0.00015924,2]
[408663225,1774084240494,-168.0,0.00015932,2]
[408663226,1774084240504,-3915.0,0.00015973,2]
[408663227,1774084240514,-501.53205621,0.00015973,2]
[408663228,1774084240523,-500.0,0.00015973,2]
[408663229,1774084240692,-210.78762468,0.00015973,2]
[408663230,1774084240703,-1521.0,0.00015983,2]
[408663231,1774084240713,-1521.0,0.00015983,2]
[408663232,1774084240723,-151.0,0.00015983,2]
[408663233,1774084240733,-1521.0,0.00015983,2]
[408663234,1774084240742,-151.0,0.00015983,2]
[408663235,1774084240752,-160.0,0.00015983,2]
[408663236,1774084240762,-1521.0,0.00015983,2]
[408663237,1774084240772,-151.0,0.00015983,2]
[408663238,1774084240782,-160.0,0.00015983,2]
[408663239,1774084240792,-1521.0,0.00015983,2]
[408663240,1774084240801,-151.0,0.00015983,2]
[408663241,1774084240811,-160.0,0.00015983,2]
[408663242,1774084240820,-1521.0,0.00015983,2]
[408663243,1774084240830,-151.0,0.00015983,2]
[408663244,1774084240839,-160.0,0.00015983,2]
[408663245,1774084240849,-151.0,0.00015983,2]
[408663246,1774084240859,-161.42353155,0.00015983,2]
[408663247,1774084240868,-151.0,0.00015983,2]
[408663248,1774084240878,-151.0,0.00015983,2]
[408663249,1774084240887,-159.9858372,0.00015983,2]
[408663250,1774084240896,-150.24489127,0.0001599,2]
[408663251,1774084240906,-14758.4592746,0.00015999,2]
[408663252,1774084240915,-10112.0848392,0.00015999,2]
[408663253,1774084240925,-76027.2405256,0.00015999,2]
[408663254,1774084240934,-2761.5534222,0.00015999,2]
[408663255,1774084240943,-155.51,0.00015999,2]
[408663256,1774084240953,-11594.2018412,0.00015999,2]
[408663257,1774084240962,-9154.9419347,0.00015999,2]
[408663258,1774084240972,-500.0,0.00015999,2]
[408663259,1774084240981,-500.0,0.00015999,2]
[408663260,1774084240991,-545.02606408,0.00015999,2]
[408663261,1774084241000,-497.81240401,0.00015999,2]
[408663262,1774084241010,-1993.0,0.00016,5]
[408663263,1774084241019,-1593.0,0.00016,5]
[408663264,1774084241028,-3025762.6147082,0.00016,2]
[408663268,1774084242466,-21.23272136,0.00015794,2]
[408663269,1774084242482,-404.05627864,0.00015794,2]
[408663270,1774084242492,-1860.42157398,0.00015876,2]
[408663271,1774084242501,-2866.05279387,0.00016,2]
[408663272,1774084242522,-3846.95746994,0.00016,2]
[408663286,1774084245469,-1000.0,0.00015764,2]
[408663287,1774084245479,-455.54287758,0.000159,2]
[408663288,1774084245489,-87685.93253479,0.00016,2]
[408663289,1774084245500,-78602.54842374,0.00016,2]
[408663290,1774084245511,-1400.93748989,0.00016,2]
[408663291,1774084245524,-1402.9726,0.00016,2]
[408663295,1774084245820,-2048.4151574,0.00016,2]
[408663297,1774084292046,-197.43371686,0.00013837,2]
[408663298,1774084292067,-2.56628314,0.00014356,2]
[408663299,1774085341195,300.0,9.499e-05,2]
[408663300,1774085348131,-5544.462602,9.5e-05,3]
[408663301,1774085401203,1200.0,9.499e-05,2]
[408663302,1774085401329,284.0,9.499e-05,2]
[408663303,1774085401915,150.0,9.499e-05,2]
[408663308,1774085431411,-819.1793169,9.5e-05,3]
[408663309,1774085431466,-1447.89690395,9.5e-05,3]
[408663310,1774085431477,-1083.06377987,9.5e-05,3]
[408663311,1774085431522,-3728.33305052,9.5e-05,3]
[408663312,1774085431533,-471.336752,9.5e-05,3]
[408663313,1774085431577,-434.57679024,9.5e-05,3]
[408663314,1774085431588,-496.2484482,9.5e-05,3]
[408663317,1774085433349,500.0,9.499e-05,2]
[408663318,1774085433387,500.0,9.499e-05,2]
[408663319,1774085433420,500.0,9.499e-05,2]
[408663320,1774085433457,500.0,9.499e-05,2]
[408663321,1774085433490,500.0,9.499e-05,2]
[408663322,1774085433523,500.0,9.499e-05,2]
[408663323,1774085433559,500.0,9.499e-05,2]
[408663324,1774085433601,500.0,9.499e-05,2]
[408663325,1774085433638,500.0,9.499e-05,2]
[408663326,1774085433672,500.0,9.499e-05,2]
[408663327,1774085433708,500.0,9.499e-05,2]
[408663328,1774085433764,500.0,9.499e-05,2]
[408663329,1774085433801,500.0,9.499e-05,2]
[408663330,1774085433836,632.64610256,9.499e-05,2]
[408663331,1774085433872,500.0,9.499e-05,2]
[408663332,1774085433905,500.0,9.499e-05,2]
[408663333,1774085433939,500.0,9.499e-05,2]
[408663334,1774085433975,500.0,9.499e-05,2]
[408663335,1774085434029,500.0,9.499e-05,2]
[408663336,1774085434079,500.0,9.499e-05,2]
[408663337,1774085434132,500.0,9.499e-05,2]
[408663338,1774085434327,500.0,9.499e-05,2]
[408663339,1774085434362,500.0,9.499e-05,2]
[408663340,1774085435177,500.0,9.499e-05,2]
[408663383,1774085439762,-471542.60010114,9.5e-05,3]
[408663384,1774085439771,-1508.0,0.00010449,2]
[408663385,1774085439781,-236.0,0.0001045,2]
[408663386,1774085439790,-250.0,0.0001045,2]
[408663387,1774085439799,-154.0,0.000105,5]